[Event "Titled Tuesday Blitz April 19 Late 2022"]
[White "Jegorovas, Aleksandras"]
[Black "Janaszak, Dawid"]
[WhiteFideId "12801950"]
[BlackFideId "1119206"]
[WhiteElo "2247"]
[BlackElo "2199"]
[Result "1-0"]
[Round "11"]
[TimeControl "180+1"]
[Date "2022.04.19"]
[WhiteClock "0:00:49"]
[BlackClock "0:00:16"]

1. Nf3 {[%clk 0:02:57]}  f5 {[%clk 0:02:57]} 2. g3 {[%clk 0:02:53]}  Nf6 {[%clk 0:02:57]} 3. Bg2 {[%clk 0:02:53]}  e6 {[%clk 0:02:57]} 4. O-O {[%clk 0:02:53]}  Be7 {[%clk 0:02:58]} 5. d4 {[%clk 0:02:53]}  O-O {[%clk 0:02:58]} 6. c4 {[%clk 0:02:53]}  d6 {[%clk 0:02:58]} 7. Nc3 {[%clk 0:02:53]}  Qe8 {[%clk 0:02:57]} 8. Qc2 {[%clk 0:02:53]}  Nbd7 {[%clk 0:02:46]} 9. e4 {[%clk 0:02:46]}  fxe4 {[%clk 0:02:47]} 10. Nxe4 {[%clk 0:02:46]}  e5 {[%clk 0:02:43]} 11. dxe5 {[%clk 0:02:41]}  Nxe5 {[%clk 0:02:41]} 12. Nxe5 {[%clk 0:02:40]}  dxe5 {[%clk 0:02:42]} 13. b3 {[%clk 0:02:37]}  Qh5 {[%clk 0:02:38]} 14. Bb2 {[%clk 0:02:34]}  Bh3 {[%clk 0:02:32]} 15. Nxf6+ {[%clk 0:02:28]}  Bxf6 {[%clk 0:02:27]} 16. Qe4 {[%clk 0:02:27]}  c6 {[%clk 0:02:21]} 17. Bxh3 {[%clk 0:02:18]}  Qxh3 {[%clk 0:02:21]} 18. Rad1 {[%clk 0:02:18]}  Rae8 {[%clk 0:02:14]} 19. Bc1 {[%clk 0:02:00]}  Bd8 {[%clk 0:02:03]} 20. Be3 {[%clk 0:01:59]}  Bb6 {[%clk 0:02:03]} 21. Bxb6 {[%clk 0:01:57]}  axb6 {[%clk 0:02:04]} 22. Rd2 {[%clk 0:01:56]}  Rf6 {[%clk 0:01:58]} 23. Rfd1 {[%clk 0:01:55]}  Rh6 {[%clk 0:01:51]} 24. Qg2 {[%clk 0:01:54]}  Qf5 {[%clk 0:01:44]} 25. Rd8 {[%clk 0:01:52]}  Re6 {[%clk 0:01:44]} 26. Rxe8+ {[%clk 0:01:52]}  Rxe8 {[%clk 0:01:45]} 27. f3 {[%clk 0:01:41]}  e4 {[%clk 0:01:35]} 28. fxe4 {[%clk 0:01:41]}  Rxe4 {[%clk 0:01:32]} 29. Qf2 {[%clk 0:01:40]}  Qxf2+ {[%clk 0:01:05]} 30. Kxf2 {[%clk 0:01:40]}  Re7 {[%clk 0:01:02]} 31. Rd8+ {[%clk 0:01:37]}  Kf7 {[%clk 0:01:02]} 32. Rb8 {[%clk 0:01:33]}  Ke6 {[%clk 0:01:00]} 33. Ke3 {[%clk 0:01:33]}  Kd6+ {[%clk 0:01:00]} 34. Kd3 {[%clk 0:01:33]}  Kc5 {[%clk 0:00:55]} 35. a3 {[%clk 0:01:23]}  Rf7 {[%clk 0:00:55]} 36. b4+ {[%clk 0:01:21]}  Kd6 {[%clk 0:00:56]} 37. Ke3 {[%clk 0:01:20]}  Kc7 {[%clk 0:00:53]} 38. Rh8 {[%clk 0:01:19]}  g6 {[%clk 0:00:49]} 39. h4 {[%clk 0:01:14]}  c5 {[%clk 0:00:40]} 40. b5 {[%clk 0:01:11]}  Kd6 {[%clk 0:00:38]} 41. Ke4 {[%clk 0:01:08]}  Re7+ {[%clk 0:00:33]} 42. Kf4 {[%clk 0:01:08]}  Rf7+ {[%clk 0:00:32]} 43. Kg5 {[%clk 0:01:08]}  Rf3 {[%clk 0:00:32]} 44. Rxh7 {[%clk 0:01:06]}  Rxg3+ {[%clk 0:00:32]} 45. Kf6 {[%clk 0:01:05]}  Rg4 {[%clk 0:00:29]} 46. Rxb7 {[%clk 0:01:04]}  Rxc4 {[%clk 0:00:23]} 47. Rxb6+ {[%clk 0:01:05]}  Kd5 {[%clk 0:00:22]} 48. Kg5 {[%clk 0:00:59]}  Ra4 {[%clk 0:00:21]} 49. Rxg6 {[%clk 0:00:58]}  c4 {[%clk 0:00:17]} 50. Rg8 {[%clk 0:00:56]}  c3 {[%clk 0:00:17]} 51. Rd8+ {[%clk 0:00:52]}  Ke4 {[%clk 0:00:13]} 52. Rc8 {[%clk 0:00:51]}  Kd3 {[%clk 0:00:14]} 53. b6 {[%clk 0:00:51]}  Rc4 {[%clk 0:00:13]} 54. Rxc4 {[%clk 0:00:50]}  Kxc4 {[%clk 0:00:14]} 55. b7 {[%clk 0:00:50]}  c2 {[%clk 0:00:15]} 56. b8=Q {[%clk 0:00:50]}  c1=Q+ {[%clk 0:00:16]} 57. Qf4+ {[%clk 0:00:49]} 1-0


[Site "https://www.chess.com"]

[Event "Titled Tuesday Blitz April 19 Late 2022"]
[White "Keymer, Vincent"]
[Black "Bacrot, Etienne"]
[WhiteFideId "12940690"]
[BlackFideId "605506"]
[WhiteElo "2557"]
[BlackElo "2673"]
[Result "0-1"]
[Round "11"]
[TimeControl "180+1"]
[Date "2022.04.19"]
[WhiteClock "0:00:01"]
[BlackClock "0:01:00"]

1. Nf3 {[%clk 0:03:00]}  d5 {[%clk 0:02:59]} 2. e3 {[%clk 0:03:00]}  Nf6 {[%clk 0:02:59]} 3. c4 {[%clk 0:03:00]}  e6 {[%clk 0:03:00]} 4. Nc3 {[%clk 0:03:01]}  Be7 {[%clk 0:03:00]} 5. b3 {[%clk 0:03:01]}  O-O {[%clk 0:03:01]} 6. Bb2 {[%clk 0:03:02]}  b6 {[%clk 0:03:01]} 7. cxd5 {[%clk 0:03:02]}  exd5 {[%clk 0:03:01]} 8. d4 {[%clk 0:03:02]}  c5 {[%clk 0:03:01]} 9. h3 {[%clk 0:02:57]}  Bb7 {[%clk 0:03:01]} 10. Bd3 {[%clk 0:02:54]}  Nbd7 {[%clk 0:03:01]} 11. O-O {[%clk 0:02:53]}  a6 {[%clk 0:03:02]} 12. Rc1 {[%clk 0:02:53]}  Re8 {[%clk 0:03:02]} 13. Ne2 {[%clk 0:02:50]}  Bf8 {[%clk 0:03:02]} 14. Ng3 {[%clk 0:02:42]}  Rc8 {[%clk 0:03:01]} 15. Qe2 {[%clk 0:02:39]}  Ra8 {[%clk 0:03:00]} 16. Rfd1 {[%clk 0:02:35]}  g6 {[%clk 0:02:59]} 17. Qf1 {[%clk 0:02:31]}  Qe7 {[%clk 0:02:54]} 18. Ne5 {[%clk 0:02:11]}  Bg7 {[%clk 0:02:52]} 19. f4 {[%clk 0:02:01]}  Nf8 {[%clk 0:02:50]} 20. Ba3 {[%clk 0:01:57]}  N6d7 {[%clk 0:02:48]} 21. Re1 {[%clk 0:01:47]}  Qd8 {[%clk 0:02:33]} 22. Kh2 {[%clk 0:01:42]}  cxd4 {[%clk 0:02:12]} 23. exd4 {[%clk 0:01:40]}  Ne6 {[%clk 0:02:12]} 24. Qf2 {[%clk 0:01:28]}  Nf6 {[%clk 0:02:12]} 25. f5 {[%clk 0:00:57]}  Ng5 {[%clk 0:02:11]} 26. Qf4 {[%clk 0:00:43]}  Nge4 {[%clk 0:02:02]} 27. fxg6 {[%clk 0:00:39]}  fxg6 {[%clk 0:02:02]} 28. Rf1 {[%clk 0:00:18]}  b5 {[%clk 0:01:53]} 29. h4 {[%clk 0:00:08]}  Rc8 {[%clk 0:01:47]} 30. Rxc8 {[%clk 0:00:07]}  Bxc8 {[%clk 0:01:45]} 31. Bxe4 {[%clk 0:00:05]}  dxe4 {[%clk 0:01:32]} 32. Nxe4 {[%clk 0:00:05]}  Ng4+ {[%clk 0:01:15]} 33. Nxg4 {[%clk 0:00:03]}  Qxh4+ {[%clk 0:01:15]} 34. Kg1 {[%clk 0:00:04]}  Bxd4+ {[%clk 0:01:15]} 35. Nef2 {[%clk 0:00:01]}  Qxg4 {[%clk 0:01:13]} 36. Qxg4 {[%clk 0:00:01]}  Bxg4 {[%clk 0:01:12]} 37. Bb2 {[%clk 0:00:02]}  Bb6 {[%clk 0:01:04]} 38. Rd1 {[%clk 0:00:01]}  Bxf2+ {[%clk 0:01:00]} 0-1


[Site "https://www.chess.com"]

[Event "Titled Tuesday Blitz April 19 Late 2022"]
[White "Lewtak, Damian"]
[Black "Urazayev, Arystanbek"]
[WhiteFideId "1141724"]
[BlackFideId "13709810"]
[WhiteElo "2362"]
[BlackElo "2422"]
[Result "1-0"]
[Round "11"]
[TimeControl "180+1"]
[Date "2022.04.19"]
[WhiteClock "0:00:35"]
[BlackClock "0:00:06"]

1. e4 {[%clk 0:03:00]}  c5 {[%clk 0:02:59]} 2. Nf3 {[%clk 0:03:00]}  d6 {[%clk 0:02:59]} 3. Bb5+ {[%clk 0:02:59]}  Bd7 {[%clk 0:02:59]} 4. Bxd7+ {[%clk 0:02:59]}  Nxd7 {[%clk 0:03:00]} 5. O-O {[%clk 0:02:59]}  Ngf6 {[%clk 0:03:00]} 6. Qe2 {[%clk 0:03:00]}  e6 {[%clk 0:03:00]} 7. c3 {[%clk 0:03:00]}  Be7 {[%clk 0:02:59]} 8. d4 {[%clk 0:03:01]}  O-O {[%clk 0:03:00]} 9. e5 {[%clk 0:02:56]}  Ne8 {[%clk 0:02:59]} 10. Bf4 {[%clk 0:02:48]}  cxd4 {[%clk 0:02:55]} 11. cxd4 {[%clk 0:02:49]}  Nb6 {[%clk 0:02:52]} 12. Nc3 {[%clk 0:02:47]}  Nc7 {[%clk 0:02:51]} 13. Ne4 {[%clk 0:02:42]}  Ncd5 {[%clk 0:02:46]} 14. Bg3 {[%clk 0:02:41]}  dxe5 {[%clk 0:02:46]} 15. dxe5 {[%clk 0:02:41]}  Rc8 {[%clk 0:02:45]} 16. h4 {[%clk 0:02:39]}  Qc7 {[%clk 0:02:38]} 17. Nfg5 {[%clk 0:02:37]}  h6 {[%clk 0:02:32]} 18. Nh3 {[%clk 0:02:37]}  Qc4 {[%clk 0:02:32]} 19. Qg4 {[%clk 0:02:36]}  h5 {[%clk 0:02:27]} 20. Qf3 {[%clk 0:02:32]}  g6 {[%clk 0:02:15]} 21. Nhg5 {[%clk 0:02:29]}  Nd7 {[%clk 0:02:08]} 22. Rac1 {[%clk 0:02:22]}  Qxc1 {[%clk 0:02:05]} 23. Rxc1 {[%clk 0:02:23]}  Rxc1+ {[%clk 0:02:05]} 24. Kh2 {[%clk 0:02:24]}  f5 {[%clk 0:01:45]} 25. exf6 {[%clk 0:02:13]}  N7xf6 {[%clk 0:01:44]} 26. Nxf6+ {[%clk 0:02:12]}  Nxf6 {[%clk 0:01:44]} 27. Bf4 {[%clk 0:02:08]}  Ng4+ {[%clk 0:01:43]} 28. Kg3 {[%clk 0:02:08]}  Bd6 {[%clk 0:01:37]} 29. Nxe6 {[%clk 0:02:05]}  Rf7 {[%clk 0:00:38]} 30. Qb3 {[%clk 0:01:40]}  Bxf4+ {[%clk 0:00:34]} 31. Nxf4 {[%clk 0:01:40]}  Rc6 {[%clk 0:00:33]} 32. Nd3 {[%clk 0:01:32]}  Kg7 {[%clk 0:00:28]} 33. f3 {[%clk 0:01:30]}  Nh6 {[%clk 0:00:24]} 34. Ne5 {[%clk 0:01:28]}  Rb6 {[%clk 0:00:20]} 35. Qc3 {[%clk 0:01:20]}  Rf5 {[%clk 0:00:13]} 36. Nd7+ {[%clk 0:01:16]}  Rbf6 {[%clk 0:00:11]} 37. Nxf6 {[%clk 0:01:15]}  Rxf6 {[%clk 0:00:12]} 38. Kf2 {[%clk 0:01:08]}  a6 {[%clk 0:00:11]} 39. Qe5 {[%clk 0:00:59]}  Ng8 {[%clk 0:00:10]} 40. Kg1 {[%clk 0:00:55]}  Kf8 {[%clk 0:00:10]} 41. Qb8+ {[%clk 0:00:53]}  Kf7 {[%clk 0:00:08]} 42. Qxb7+ {[%clk 0:00:53]}  Ne7 {[%clk 0:00:09]} 43. g4 {[%clk 0:00:49]}  hxg4 {[%clk 0:00:08]} 44. fxg4 {[%clk 0:00:50]}  Rf4 {[%clk 0:00:08]} 45. Qd7 {[%clk 0:00:44]}  Rc4 {[%clk 0:00:07]} 46. Qd1 {[%clk 0:00:37]}  Ke6 {[%clk 0:00:06]} 47. Qe2+ {[%clk 0:00:35]} 1-0


[Site "https://www.chess.com"]

[Event "Titled Tuesday Blitz April 19 Late 2022"]
[White "Lin, Dachey"]
[Black "Indjic, Aleksandar"]
[WhiteFideId "2029650"]
[BlackFideId "911925"]
[WhiteElo "2313"]
[BlackElo "2616"]
[Result "1/2-1/2"]
[Round "11"]
[TimeControl "180+1"]
[Date "2022.04.19"]
[WhiteClock "0:00:09"]
[BlackClock "0:00:09"]

1. Nc3 {[%clk 0:03:00]}  d5 {[%clk 0:02:57]} 2. e4 {[%clk 0:03:01]}  d4 {[%clk 0:02:55]} 3. Nce2 {[%clk 0:03:01]}  c5 {[%clk 0:02:55]} 4. Nf3 {[%clk 0:03:02]}  Nc6 {[%clk 0:02:44]} 5. c3 {[%clk 0:03:02]}  e5 {[%clk 0:02:40]} 6. Ng3 {[%clk 0:03:02]}  a6 {[%clk 0:02:40]} 7. Bc4 {[%clk 0:03:02]}  h6 {[%clk 0:02:35]} 8. Qb3 {[%clk 0:02:26]}  Qc7 {[%clk 0:02:32]} 9. Bd5 {[%clk 0:02:26]}  Nf6 {[%clk 0:02:29]} 10. Bxc6+ {[%clk 0:02:22]}  bxc6 {[%clk 0:02:29]} 11. d3 {[%clk 0:02:22]}  Be6 {[%clk 0:02:27]} 12. Qa4 {[%clk 0:02:22]}  Nd7 {[%clk 0:02:26]} 13. O-O {[%clk 0:02:20]}  g6 {[%clk 0:02:22]} 14. Nh4 {[%clk 0:01:45]}  Qb7 {[%clk 0:02:07]} 15. Ne2 {[%clk 0:01:17]}  Be7 {[%clk 0:02:05]} 16. Nf3 {[%clk 0:01:17]}  a5 {[%clk 0:01:55]} 17. Nd2 {[%clk 0:01:12]}  f6 {[%clk 0:01:17]} 18. f4 {[%clk 0:01:11]}  Bf7 {[%clk 0:01:16]} 19. c4 {[%clk 0:01:07]}  Bd6 {[%clk 0:00:55]} 20. Nf3 {[%clk 0:01:06]}  g5 {[%clk 0:00:50]} 21. fxe5 {[%clk 0:00:40]}  Nxe5 {[%clk 0:00:47]} 22. Qc2 {[%clk 0:00:28]}  Ng6 {[%clk 0:00:37]} 23. Bd2 {[%clk 0:00:22]}  Qc7 {[%clk 0:00:34]} 24. h3 {[%clk 0:00:20]}  h5 {[%clk 0:00:32]} 25. Ne1 {[%clk 0:00:09]}  g4 {[%clk 0:00:31]} 26. Rxf6 {[%clk 0:00:08]}  gxh3 {[%clk 0:00:30]} 27. Nf3 {[%clk 0:00:05]}  Rg8 {[%clk 0:00:27]} 28. Bg5 {[%clk 0:00:04]}  Ne5 {[%clk 0:00:22]} 29. Qd2 {[%clk 0:00:03]}  Be7 {[%clk 0:00:18]} 30. Rf5 {[%clk 0:00:04]}  Nxf3+ {[%clk 0:00:14]} 31. gxf3 {[%clk 0:00:05]}  O-O-O {[%clk 0:00:13]} 32. Kh1 {[%clk 0:00:04]}  Be6 {[%clk 0:00:12]} 33. Bxe7 {[%clk 0:00:03]}  Qxe7 {[%clk 0:00:11]} 34. Rxh5 {[%clk 0:00:03]}  Rg2 {[%clk 0:00:11]} 35. Re1 {[%clk 0:00:03]}  Rdg8 {[%clk 0:00:11]} 36. Qxa5 {[%clk 0:00:02]}  Qd6 {[%clk 0:00:07]} 37. Qa8+ {[%clk 0:00:02]}  Kd7 {[%clk 0:00:07]} 38. Rh7+ {[%clk 0:00:03]}  R8g7 {[%clk 0:00:07]} 39. Qa7+ {[%clk 0:00:02]}  Qc7 {[%clk 0:00:07]} 40. Qxc7+ {[%clk 0:00:02]}  Kxc7 {[%clk 0:00:08]} 41. Rxg7+ {[%clk 0:00:02]}  Rxg7 {[%clk 0:00:08]} 42. Nf4 {[%clk 0:00:03]}  Bd7 {[%clk 0:00:08]} 43. Rg1 {[%clk 0:00:03]}  Rf7 {[%clk 0:00:08]} 44. Ng6 {[%clk 0:00:03]}  Rxf3 {[%clk 0:00:08]} 45. Ne5 {[%clk 0:00:04]}  Re3 {[%clk 0:00:07]} 46. Kh2 {[%clk 0:00:03]}  Kd6 {[%clk 0:00:07]} 47. Nxd7 {[%clk 0:00:03]}  Kxd7 {[%clk 0:00:08]} 48. Rg3 {[%clk 0:00:03]}  Re2+ {[%clk 0:00:09]} 49. Kxh3 {[%clk 0:00:04]}  Rxb2 {[%clk 0:00:10]} 50. Kh4 {[%clk 0:00:04]}  Rxa2 {[%clk 0:00:09]} 51. Kg4 {[%clk 0:00:05]}  Ke6 {[%clk 0:00:10]} 52. Kf4 {[%clk 0:00:05]}  Rf2+ {[%clk 0:00:10]} 53. Rf3 {[%clk 0:00:06]}  Rg2 {[%clk 0:00:10]} 54. Rg3 {[%clk 0:00:06]}  Rf2+ {[%clk 0:00:10]} 55. Rf3 {[%clk 0:00:07]}  Rg2 {[%clk 0:00:11]} 56. Rh3 {[%clk 0:00:07]}  Rf2+ {[%clk 0:00:11]} 57. Kg4 {[%clk 0:00:07]}  Rf6 {[%clk 0:00:10]} 58. Rh5 {[%clk 0:00:07]}  Rf1 {[%clk 0:00:08]} 59. Rxc5 {[%clk 0:00:06]}  Rd1 {[%clk 0:00:07]} 60. Rxc6+ {[%clk 0:00:06]}  Ke5 {[%clk 0:00:07]} 61. Rc5+ {[%clk 0:00:06]}  Ke6 {[%clk 0:00:08]} 62. Rd5 {[%clk 0:00:07]}  Rxd3 {[%clk 0:00:08]} 63. c5 {[%clk 0:00:07]}  Rd1 {[%clk 0:00:08]} 64. Kf4 {[%clk 0:00:07]}  Rd2 {[%clk 0:00:08]} 65. c6 {[%clk 0:00:07]}  Rc2 {[%clk 0:00:08]} 66. Rxd4 {[%clk 0:00:05]}  Rxc6 {[%clk 0:00:08]} 67. Rd5 {[%clk 0:00:06]}  Ra6 {[%clk 0:00:07]} 68. Rh5 {[%clk 0:00:06]}  Ke7 {[%clk 0:00:08]} 69. Rh7+ {[%clk 0:00:06]}  Ke8 {[%clk 0:00:08]} 70. Ke5 {[%clk 0:00:07]}  Ra5+ {[%clk 0:00:07]} 71. Kf6 {[%clk 0:00:07]}  Ra6+ {[%clk 0:00:08]} 72. Kf5 {[%clk 0:00:07]}  Ra5+ {[%clk 0:00:08]} 73. e5 {[%clk 0:00:08]}  Ra6 {[%clk 0:00:08]} 74. Rg7 {[%clk 0:00:08]}  Rb6 {[%clk 0:00:08]} 75. Rc7 {[%clk 0:00:08]}  Ra6 {[%clk 0:00:08]} 76. Rc3 {[%clk 0:00:08]}  Rb6 {[%clk 0:00:08]} 77. Rd3 {[%clk 0:00:08]}  Ra6 {[%clk 0:00:09]} 78. Ke4 {[%clk 0:00:07]}  Ke7 {[%clk 0:00:08]} 79. Kd5 {[%clk 0:00:08]}  Ra5+ {[%clk 0:00:08]} 80. Ke4 {[%clk 0:00:08]}  Ra4+ {[%clk 0:00:08]} 81. Kf5 {[%clk 0:00:08]}  Ra1 {[%clk 0:00:08]} 82. Rb3 {[%clk 0:00:08]}  Rf1+ {[%clk 0:00:08]} 83. Ke4 {[%clk 0:00:08]}  Re1+ {[%clk 0:00:08]} 84. Kd5 {[%clk 0:00:08]}  Rd1+ {[%clk 0:00:08]} 85. Ke4 {[%clk 0:00:08]}  Re1+ {[%clk 0:00:08]} 86. Re3 {[%clk 0:00:08]}  Rxe3+ {[%clk 0:00:08]} 87. Kxe3 {[%clk 0:00:09]}  Ke6 {[%clk 0:00:09]} 88. Ke2 {[%clk 0:00:09]}  Kxe5 {[%clk 0:00:09]} 1/2-1/2


[Site "https://www.chess.com"]

[Event "Titled Tuesday Blitz April 19 Late 2022"]
[White "Lopez Idarraga, Daniel Eduardo"]
[Black "Ricaurte Lopez, Juan Carlos"]
[WhiteFideId "4405501"]
[BlackFideId "3600327"]
[WhiteElo "2055"]
[BlackElo "2209"]
[Result "1-0"]
[Round "11"]
[TimeControl "180+1"]
[Date "2022.04.19"]
[WhiteClock "0:00:21"]
[BlackClock "0:00:14"]

1. d4 {[%clk 0:03:00]}  Nf6 {[%clk 0:02:58]} 2. Nf3 {[%clk 0:03:00]}  e6 {[%clk 0:02:57]} 3. e3 {[%clk 0:03:01]}  c5 {[%clk 0:02:57]} 4. Bd3 {[%clk 0:03:01]}  b6 {[%clk 0:02:56]} 5. O-O {[%clk 0:03:01]}  Bb7 {[%clk 0:02:56]} 6. c4 {[%clk 0:03:02]}  Be7 {[%clk 0:02:52]} 7. Nc3 {[%clk 0:03:02]}  O-O {[%clk 0:02:50]} 8. d5 {[%clk 0:03:03]}  d6 {[%clk 0:02:49]} 9. e4 {[%clk 0:02:57]}  e5 {[%clk 0:02:41]} 10. Bg5 {[%clk 0:02:52]}  Nfd7 {[%clk 0:02:36]} 11. Bxe7 {[%clk 0:02:51]}  Qxe7 {[%clk 0:02:34]} 12. a3 {[%clk 0:02:50]}  g6 {[%clk 0:02:19]} 13. b4 {[%clk 0:02:49]}  f5 {[%clk 0:02:15]} 14. Nd2 {[%clk 0:02:06]}  Na6 {[%clk 0:02:08]} 15. b5 {[%clk 0:02:00]}  Nc7 {[%clk 0:02:07]} 16. a4 {[%clk 0:02:01]}  a6 {[%clk 0:02:01]} 17. Rb1 {[%clk 0:01:57]}  axb5 {[%clk 0:02:00]} 18. axb5 {[%clk 0:01:53]}  f4 {[%clk 0:01:51]} 19. f3 {[%clk 0:01:23]}  Ne8 {[%clk 0:01:48]} 20. Ra1 {[%clk 0:01:17]}  Ng7 {[%clk 0:01:47]} 21. Qc2 {[%clk 0:01:15]}  g5 {[%clk 0:01:46]} 22. Rxa8 {[%clk 0:01:13]}  Rxa8 {[%clk 0:01:44]} 23. Qb2 {[%clk 0:01:13]}  Qd8 {[%clk 0:01:43]} 24. Ra1 {[%clk 0:01:11]}  Qb8 {[%clk 0:01:41]} 25. Ra3 {[%clk 0:01:09]}  Rxa3 {[%clk 0:01:39]} 26. Qxa3 {[%clk 0:01:10]}  Qa8 {[%clk 0:01:38]} 27. Qxa8+ {[%clk 0:01:09]}  Bxa8 {[%clk 0:01:39]} 28. g4 {[%clk 0:01:06]}  Nf8 {[%clk 0:01:30]} 29. h4 {[%clk 0:00:51]}  gxh4 {[%clk 0:01:25]} 30. Kg2 {[%clk 0:00:48]}  Ne8 {[%clk 0:01:15]} 31. Kh3 {[%clk 0:00:48]}  Ng6 {[%clk 0:01:09]} 32. Na4 {[%clk 0:00:47]}  h5 {[%clk 0:01:03]} 33. gxh5 {[%clk 0:00:45]}  Nf8 {[%clk 0:00:57]} 34. Nxb6 {[%clk 0:00:45]}  Bb7 {[%clk 0:00:56]} 35. Kxh4 {[%clk 0:00:45]}  Kg7 {[%clk 0:00:56]} 36. Kg5 {[%clk 0:00:43]}  Nh7+ {[%clk 0:00:53]} 37. Kf5 {[%clk 0:00:43]}  Kf7 {[%clk 0:00:50]} 38. Nb3 {[%clk 0:00:41]}  Ng7+ {[%clk 0:00:49]} 39. Kg4 {[%clk 0:00:41]}  Nf6+ {[%clk 0:00:48]} 40. Kg5 {[%clk 0:00:40]}  Nfxh5 {[%clk 0:00:47]} 41. Na4 {[%clk 0:00:39]}  Bc8 {[%clk 0:00:45]} 42. Na5 {[%clk 0:00:34]}  Ng3 {[%clk 0:00:41]} 43. b6 {[%clk 0:00:29]}  Ke7 {[%clk 0:00:37]} 44. b7 {[%clk 0:00:29]}  Bxb7 {[%clk 0:00:37]} 45. Nxb7 {[%clk 0:00:30]}  Ne8 {[%clk 0:00:35]} 46. Nbxc5 {[%clk 0:00:26]}  dxc5 {[%clk 0:00:34]} 47. Nxc5 {[%clk 0:00:27]}  Nd6 {[%clk 0:00:34]} 48. Ne6 {[%clk 0:00:27]}  Nh1 {[%clk 0:00:28]} 49. c5 {[%clk 0:00:26]}  Ne8 {[%clk 0:00:27]} 50. Bb5 {[%clk 0:00:24]}  Nf2 {[%clk 0:00:24]} 51. Bxe8 {[%clk 0:00:23]}  Kxe8 {[%clk 0:00:24]} 52. Kf5 {[%clk 0:00:23]}  Nd3 {[%clk 0:00:23]} 53. c6 {[%clk 0:00:21]}  Ke7 {[%clk 0:00:22]} 54. Ng7 {[%clk 0:00:14]}  Kd6 {[%clk 0:00:20]} 55. Nh5 {[%clk 0:00:14]}  Nb4 {[%clk 0:00:19]} 56. Nf6 {[%clk 0:00:14]}  Nxc6 {[%clk 0:00:18]} 57. dxc6 {[%clk 0:00:13]}  Kxc6 {[%clk 0:00:18]} 58. Kxe5 {[%clk 0:00:14]}  Kc5 {[%clk 0:00:18]} 59. Kxf4 {[%clk 0:00:15]}  Kc4 {[%clk 0:00:18]} 60. Ke5 {[%clk 0:00:15]}  Kd3 {[%clk 0:00:17]} 61. f4 {[%clk 0:00:16]}  Ke3 {[%clk 0:00:17]} 62. f5 {[%clk 0:00:17]}  Kf3 {[%clk 0:00:17]} 63. Ng4 {[%clk 0:00:18]}  Kxg4 {[%clk 0:00:14]} 64. f6 {[%clk 0:00:19]}  Kf3 {[%clk 0:00:14]} 65. f7 {[%clk 0:00:20]}  Ke3 {[%clk 0:00:14]} 66. f8=Q {[%clk 0:00:21]} 1-0


[Site "https://www.chess.com"]

[Event "Titled Tuesday Blitz April 19 Late 2022"]
[White "Mangialardo, Tiago Carvalho"]
[Black "Mohammadian, Mohammad"]
[WhiteFideId "2130718"]
[BlackFideId "12566055"]
[WhiteElo "2049"]
[BlackElo "1544"]
[Result "1-0"]
[Round "11"]
[TimeControl "180+1"]
[Date "2022.04.19"]
[WhiteClock "0:00:08"]
[BlackClock "0:00:28"]

1. e4 {[%clk 0:03:00]}  e5 {[%clk 0:02:55]} 2. Nf3 {[%clk 0:03:00]}  Nc6 {[%clk 0:02:52]} 3. d4 {[%clk 0:03:00]}  exd4 {[%clk 0:02:51]} 4. Nxd4 {[%clk 0:03:01]}  Bc5 {[%clk 0:02:51]} 5. Nxc6 {[%clk 0:03:00]}  Qf6 {[%clk 0:02:49]} 6. Qf3 {[%clk 0:02:58]}  Qxf3 {[%clk 0:02:48]} 7. gxf3 {[%clk 0:02:59]}  bxc6 {[%clk 0:02:48]} 8. Nc3 {[%clk 0:02:59]}  Bb7 {[%clk 0:02:46]} 9. Bf4 {[%clk 0:02:58]}  O-O-O {[%clk 0:02:44]} 10. Bc4 {[%clk 0:02:55]}  f6 {[%clk 0:02:39]} 11. Na4 {[%clk 0:02:50]}  Bb6 {[%clk 0:02:36]} 12. Nxb6+ {[%clk 0:02:47]}  cxb6 {[%clk 0:02:36]} 13. Bd6 {[%clk 0:02:47]}  Nh6 {[%clk 0:02:30]} 14. O-O-O {[%clk 0:02:43]}  c5 {[%clk 0:02:16]} 15. Rhg1 {[%clk 0:02:41]}  g6 {[%clk 0:02:10]} 16. Rd3 {[%clk 0:02:17]}  f5 {[%clk 0:02:10]} 17. Rc3 {[%clk 0:01:12]}  fxe4 {[%clk 0:02:08]} 18. fxe4 {[%clk 0:00:55]}  Bxe4 {[%clk 0:02:06]} 19. b4 {[%clk 0:00:54]}  Bc6 {[%clk 0:01:53]} 20. bxc5 {[%clk 0:00:35]}  bxc5 {[%clk 0:01:52]} 21. Ba6+ {[%clk 0:00:15]}  Bb7 {[%clk 0:01:21]} 22. Rb3 {[%clk 0:00:15]}  Rde8 {[%clk 0:01:12]} 23. Bxb7+ {[%clk 0:00:14]}  Kd8 {[%clk 0:01:10]} 24. Bd5 {[%clk 0:00:12]}  Re1+ {[%clk 0:00:54]} 25. Rxe1 {[%clk 0:00:11]}  Nf5 {[%clk 0:00:28]} 26. Rb8# {[%clk 0:00:08]} 1-0


[Site "https://www.chess.com"]

[Event "Titled Tuesday Blitz April 19 Late 2022"]
[White "Mikhalsky, Vladimir"]
[Black "Kanyamarala, Tarun"]
[WhiteFideId "14144352"]
[BlackFideId "45004714"]
[WhiteElo "2440"]
[BlackElo "2528"]
[Result "0-1"]
[Round "11"]
[TimeControl "180+1"]
[Date "2022.04.19"]
[WhiteClock "0:00:20"]
[BlackClock "0:00:39"]

1. e4 {[%clk 0:02:54]}  c5 {[%clk 0:02:59]} 2. Nf3 {[%clk 0:02:54]}  Nc6 {[%clk 0:02:59]} 3. d4 {[%clk 0:02:53]}  cxd4 {[%clk 0:02:59]} 4. Nxd4 {[%clk 0:02:53]}  Nf6 {[%clk 0:03:00]} 5. Nc3 {[%clk 0:02:54]}  e5 {[%clk 0:03:00]} 6. Ndb5 {[%clk 0:02:54]}  d6 {[%clk 0:03:01]} 7. Bg5 {[%clk 0:02:54]}  a6 {[%clk 0:03:01]} 8. Na3 {[%clk 0:02:53]}  b5 {[%clk 0:03:02]} 9. Nd5 {[%clk 0:02:54]}  Be7 {[%clk 0:03:03]} 10. Bxf6 {[%clk 0:02:54]}  Bxf6 {[%clk 0:03:03]} 11. c3 {[%clk 0:02:54]}  O-O {[%clk 0:03:03]} 12. h4 {[%clk 0:02:54]}  g6 {[%clk 0:02:58]} 13. g3 {[%clk 0:02:52]}  Bg7 {[%clk 0:02:56]} 14. Bh3 {[%clk 0:02:48]}  Be6 {[%clk 0:02:54]} 15. Nc2 {[%clk 0:02:41]}  Rb8 {[%clk 0:02:54]} 16. Qd3 {[%clk 0:02:26]}  a5 {[%clk 0:02:48]} 17. a3 {[%clk 0:02:23]}  Ne7 {[%clk 0:02:43]} 18. Nce3 {[%clk 0:02:17]}  Nxd5 {[%clk 0:02:41]} 19. Nxd5 {[%clk 0:02:15]}  f5 {[%clk 0:02:38]} 20. O-O {[%clk 0:02:06]}  Kh8 {[%clk 0:02:37]} 21. Kg2 {[%clk 0:02:03]}  Qc8 {[%clk 0:02:24]} 22. Rh1 {[%clk 0:02:02]}  Qb7 {[%clk 0:02:19]} 23. Rad1 {[%clk 0:01:57]}  Rf7 {[%clk 0:02:14]} 24. h5 {[%clk 0:01:55]}  fxe4 {[%clk 0:01:59]} 25. Qxe4 {[%clk 0:01:52]}  Bxh3+ {[%clk 0:01:52]} 26. Rxh3 {[%clk 0:01:52]}  Rbf8 {[%clk 0:01:52]} 27. hxg6 {[%clk 0:01:42]}  Rxf2+ {[%clk 0:01:51]} 28. Kg1 {[%clk 0:01:33]}  h6 {[%clk 0:01:50]} 29. Rh2 {[%clk 0:00:45]}  Qa7 {[%clk 0:01:43]} 30. Qe3 {[%clk 0:00:38]}  Qxe3 {[%clk 0:01:32]} 31. Nxe3 {[%clk 0:00:38]}  R2f3 {[%clk 0:01:33]} 32. Re1 {[%clk 0:00:33]}  Rxg3+ {[%clk 0:01:30]} 33. Rg2 {[%clk 0:00:33]}  Rgf3 {[%clk 0:01:30]} 34. Nd5 {[%clk 0:00:31]}  e4 {[%clk 0:01:27]} 35. Rxe4 {[%clk 0:00:29]}  Rf1+ {[%clk 0:01:22]} 36. Kh2 {[%clk 0:00:29]}  R1f5 {[%clk 0:01:09]} 37. Ne7 {[%clk 0:00:27]}  Rh5+ {[%clk 0:00:59]} 38. Kg3 {[%clk 0:00:27]}  Be5+ {[%clk 0:00:55]} 39. Kg4 {[%clk 0:00:26]}  Rg5+ {[%clk 0:00:52]} 40. Kh3 {[%clk 0:00:26]}  Rf3+ {[%clk 0:00:50]} 41. Kh4 {[%clk 0:00:21]}  Rxg2 {[%clk 0:00:49]} 42. Rxe5 {[%clk 0:00:20]}  dxe5 {[%clk 0:00:47]} 43. Nc6 {[%clk 0:00:20]}  Rf4+ {[%clk 0:00:39]} 0-1


[Site "https://www.chess.com"]